[Event "Early-Titled-Tuesday-Blitz-April-02-2024"]
[Site "Chess.com"]
[Date "2024.04.02"]
[Round "3"]
[White "Hamisandwich"]
[Black "XDPS"]
[Result "0-1"]
[WhiteElo "2705"]
[BlackElo "2922"]
[TimeControl "180+1"]
[EndTime "8:26:59 PDT"]
[Termination "XDPS won on time"]

1. e4 {[%clk 0:03:00.9]} 1... c5 {[%clk 0:02:58.6]} 2. Nc3 {[%clk 0:03:01]} 2...
a6 {[%clk 0:02:58.3]} 3. d4 {[%clk 0:02:59.5]} 3... cxd4 {[%clk 0:02:58]} 4.
Qxd4 {[%clk 0:03:00.4]} 4... Nc6 {[%clk 0:02:58.4]} 5. Qe3 {[%clk 0:02:57.7]}
5... e6 {[%clk 0:02:57.5]} 6. b3 {[%clk 0:02:52.5]} 6... Qa5 {[%clk 0:02:51.6]}
7. Bb2 {[%clk 0:02:50.1]} 7... Nf6 {[%clk 0:02:36.8]} 8. O-O-O {[%clk
0:02:47.7]} 8... Ba3 {[%clk 0:02:34.9]} 9. Nf3 {[%clk 0:02:36.6]} 9... O-O
{[%clk 0:02:31.6]} 10. Kb1 {[%clk 0:02:28.5]} 10... Bxb2 {[%clk 0:02:30.5]} 11.
Kxb2 {[%clk 0:02:29.4]} 11... d5 {[%clk 0:02:30.5]} 12. exd5 {[%clk 0:02:19.1]}
12... exd5 {[%clk 0:02:30.2]} 13. Nd4 {[%clk 0:02:16.1]} 13... Re8 {[%clk
0:02:19.1]} 14. Qd2 {[%clk 0:02:04]} 14... Bd7 {[%clk 0:02:07.7]} 15. f3 {[%clk
0:01:41.5]} 15... Rac8 {[%clk 0:02:07]} 16. Nce2 {[%clk 0:01:36.8]} 16... Qb6
{[%clk 0:02:02.1]} 17. Nxc6 {[%clk 0:01:26.5]} 17... bxc6 {[%clk 0:02:01.6]} 18.
g4 {[%clk 0:01:19]} 18... Be6 {[%clk 0:01:54.1]} 19. Nd4 {[%clk 0:01:14.3]}
19... c5 {[%clk 0:01:50.8]} 20. Nxe6 {[%clk 0:01:12.5]} 20... fxe6 {[%clk
0:01:51.7]} 21. g5 {[%clk 0:01:10.9]} 21... Nd7 {[%clk 0:01:51.8]} 22. f4 {[%clk
0:01:08.1]} 22... a5 {[%clk 0:01:51.7]} 23. Bh3 {[%clk 0:01:05.1]} 23... a4
{[%clk 0:01:50.5]} 24. Rhe1 {[%clk 0:01:00.3]} 24... axb3 {[%clk 0:01:50.2]} 25.
axb3 {[%clk 0:00:56.3]} 25... c4 {[%clk 0:01:50.5]} 26. Re3 {[%clk 0:00:33.7]}
26... Nc5 {[%clk 0:01:44.5]} 27. Ra1 {[%clk 0:00:27.6]} 27... Ne4 {[%clk
0:01:32.2]} 28. Qe1 {[%clk 0:00:19.5]} 28... cxb3 {[%clk 0:01:26.7]} 29. Rxb3
{[%clk 0:00:15.4]} 29... Qd4+ {[%clk 0:01:26.1]} 30. c3 {[%clk 0:00:14.6]} 30...
Qd3 {[%clk 0:01:15.8]} 31. Bg2 {[%clk 0:00:07.1]} 31... Rxc3 {[%clk 0:01:01.5]}
32. Rxc3 {[%clk 0:00:01.3]} 32... Rb8+ {[%clk 0:01:02.1]} 0-1

[Event "Early-Titled-Tuesday-Blitz-April-02-2024"]
[Site "Chess.com"]
[Date "2024.04.02"]
[Round "3"]
[White "zano2023"]
[Black "VD_coach"]
[Result "0-1"]
[WhiteElo "2227"]
[BlackElo "2569"]
[TimeControl "180+1"]
[EndTime "8:26:59 PDT"]
[Termination "VD_coach won by checkmate"]

1. d4 {[%clk 0:03:00.9]} 1... Nf6 {[%clk 0:02:20.8]} 2. Nd2 {[%clk 0:02:59.6]}
2... g6 {[%clk 0:02:20.8]} 3. e4 {[%clk 0:02:59.3]} 3... d6 {[%clk 0:02:21]} 4.
Ngf3 {[%clk 0:02:59.9]} 4... Bg7 {[%clk 0:02:21.2]} 5. Bd3 {[%clk 0:03:00.5]}
5... O-O {[%clk 0:02:21.3]} 6. O-O {[%clk 0:03:01.1]} 6... Nc6 {[%clk
0:02:21.5]} 7. c3 {[%clk 0:03:00]} 7... e5 {[%clk 0:02:21.5]} 8. Re1 {[%clk
0:02:59.9]} 8... h6 {[%clk 0:02:20.7]} 9. Nf1 {[%clk 0:02:57.1]} 9... Re8 {[%clk
0:02:20.2]} 10. Ng3 {[%clk 0:02:53]} 10... Bg4 {[%clk 0:02:19.9]} 11. d5 {[%clk
0:02:50.9]} 11... Ne7 {[%clk 0:02:18.9]} 12. h3 {[%clk 0:02:51.5]} 12... Bd7
{[%clk 0:02:18.9]} 13. Nh2 {[%clk 0:02:42.7]} 13... c6 {[%clk 0:02:18.9]} 14. c4
{[%clk 0:02:42.2]} 14... cxd5 {[%clk 0:02:18.6]} 15. cxd5 {[%clk 0:02:41.5]}
15... Rc8 {[%clk 0:02:17.6]} 16. Be3 {[%clk 0:02:38]} 16... Qa5 {[%clk
0:02:15.4]} 17. a3 {[%clk 0:02:24.3]} 17... Bb5 {[%clk 0:02:13.5]} 18. b4 {[%clk
0:02:20.9]} 18... Qa6 {[%clk 0:02:13.3]} 19. Bxb5 {[%clk 0:02:17.1]} 19... Qxb5
{[%clk 0:02:13]} 20. Qd2 {[%clk 0:02:17.6]} 20... h5 {[%clk 0:02:07.3]} 21. Bh6
{[%clk 0:02:05]} 21... h4 {[%clk 0:02:03.6]} 22. Bxg7 {[%clk 0:02:02.9]} 22...
Kxg7 {[%clk 0:02:01.1]} 23. Ngf1 {[%clk 0:01:48.2]} 23... Rc4 {[%clk 0:01:58.1]}
24. f3 {[%clk 0:01:36.8]} 24... Rec8 {[%clk 0:01:57]} 25. Rac1 {[%clk
0:01:26.2]} 25... Nh5 {[%clk 0:01:47.7]} 26. Rxc4 {[%clk 0:01:20]} 26... Qxc4
{[%clk 0:01:47.9]} 27. Qg5 {[%clk 0:01:20]} 27... Qd4+ {[%clk 0:01:33]} 28. Qe3
{[%clk 0:01:08]} 28... Nf4 {[%clk 0:01:28.1]} 29. Qxd4 {[%clk 0:01:06.5]} 29...
exd4 {[%clk 0:01:29]} 30. Rd1 {[%clk 0:01:01.8]} 30... g5 {[%clk 0:01:23.3]} 31.
Nd2 {[%clk 0:00:53.9]} 31... Neg6 {[%clk 0:01:19.9]} 32. Nhf1 {[%clk 0:00:51.7]}
32... Ne5 {[%clk 0:01:19]} 33. Kh2 {[%clk 0:00:50.5]} 33... Rc2 {[%clk
0:01:18.5]} 34. g3 {[%clk 0:00:49.9]} 34... Nfd3 {[%clk 0:01:14.1]} 35. gxh4
{[%clk 0:00:45.2]} 35... gxh4 {[%clk 0:01:14.4]} 36. Kg1 {[%clk 0:00:45]} 36...
Nb2 {[%clk 0:01:12.6]} 37. Re1 {[%clk 0:00:41.9]} 37... Nbc4 {[%clk 0:01:09.8]}
38. Nxc4 {[%clk 0:00:41.3]} 38... Nxf3+ {[%clk 0:01:10.1]} 39. Kh1 {[%clk
0:00:39.4]} 39... Nxe1 {[%clk 0:01:10.3]} 40. Nxd6 {[%clk 0:00:40]} 40... Nf3
{[%clk 0:01:04.4]} 41. Nf5+ {[%clk 0:00:38.8]} 41... Kf8 {[%clk 0:01:02.1]} 42.
d6 {[%clk 0:00:37.2]} 42... Ke8 {[%clk 0:01:01.1]} 43. e5 {[%clk 0:00:34.4]}
43... d3 {[%clk 0:01:00.6]} 44. N1e3 {[%clk 0:00:33.6]} 44... Rh2# {[%clk
0:00:58.9]} 0-1

[Event "Early-Titled-Tuesday-Blitz-April-02-2024"]
[Site "Chess.com"]
[Date "2024.04.02"]
[Round "3"]
[White "pirulillo"]
[Black "Iskusnyh"]
[Result "1-0"]
[WhiteElo "2349"]
[BlackElo "2615"]
[TimeControl "180+1"]
[EndTime "8:26:59 PDT"]
[Termination "pirulillo won on time"]

1. e4 {[%clk 0:03:00]} 1... e6 {[%clk 0:02:59.6]} 2. d3 {[%clk 0:02:59.8]} 2...
c5 {[%clk 0:02:58.7]} 3. Nf3 {[%clk 0:02:59.7]} 3... Nc6 {[%clk 0:02:58.6]} 4.
g3 {[%clk 0:02:59.8]} 4... g6 {[%clk 0:02:59]} 5. d4 {[%clk 0:02:58.9]} 5...
cxd4 {[%clk 0:02:58]} 6. Nxd4 {[%clk 0:02:59.8]} 6... a6 {[%clk 0:02:46.1]} 7.
Nc3 {[%clk 0:02:55.3]} 7... Bg7 {[%clk 0:02:43.3]} 8. Be3 {[%clk 0:02:55.5]}
8... Nge7 {[%clk 0:02:42.5]} 9. Bg2 {[%clk 0:02:55.2]} 9... O-O {[%clk
0:02:39.5]} 10. O-O {[%clk 0:02:54.8]} 10... d5 {[%clk 0:02:38.2]} 11. exd5
{[%clk 0:02:54.3]} 11... exd5 {[%clk 0:02:38]} 12. Nce2 {[%clk 0:02:51.2]} 12...
Ne5 {[%clk 0:02:31.3]} 13. c3 {[%clk 0:02:49.4]} 13... Nc4 {[%clk 0:02:29.1]}
14. Bc1 {[%clk 0:02:49.2]} 14... Nc6 {[%clk 0:02:24.7]} 15. b3 {[%clk
0:02:48.1]} 15... N4e5 {[%clk 0:02:22.8]} 16. h3 {[%clk 0:02:48.1]} 16... Re8
{[%clk 0:02:20.1]} 17. Be3 {[%clk 0:02:47.6]} 17... Be6 {[%clk 0:02:05]} 18. Qd2
{[%clk 0:02:24]} 18... Qa5 {[%clk 0:01:56.8]} 19. Rac1 {[%clk 0:02:13.1]} 19...
Rad8 {[%clk 0:01:52.3]} 20. f4 {[%clk 0:01:50]} 20... Nd7 {[%clk 0:01:46.6]} 21.
f5 {[%clk 0:01:48.7]} 21... Bxf5 {[%clk 0:01:35.4]} 22. Nxf5 {[%clk 0:01:44.2]}
22... gxf5 {[%clk 0:01:36.3]} 23. Rxf5 {[%clk 0:01:43.8]} 23... Nf6 {[%clk
0:01:29.3]} 24. Nd4 {[%clk 0:01:36.7]} 24... Ne4 {[%clk 0:01:26.4]} 25. Bxe4
{[%clk 0:01:33.6]} 25... dxe4 {[%clk 0:01:24.8]} 26. Qf2 {[%clk 0:01:31.7]}
26... Qc7 {[%clk 0:01:17.4]} 27. Rf1 {[%clk 0:01:27.3]} 27... Ne5 {[%clk
0:01:10.4]} 28. Bf4 {[%clk 0:01:24]} 28... Qxc3 {[%clk 0:01:02.1]} 29. Bxe5
{[%clk 0:01:17.7]} 29... Bxe5 {[%clk 0:01:01.6]} 30. Rxe5 {[%clk 0:01:17.5]}
30... Rxe5 {[%clk 0:00:58.1]} 31. Qxf7+ {[%clk 0:01:16.9]} 31... Kh8 {[%clk
0:00:58]} 32. Qf6+ {[%clk 0:01:15.4]} 32... Kg8 {[%clk 0:00:57.8]} 33. Qxd8+
{[%clk 0:01:15.1]} 1-0

[Event "Early-Titled-Tuesday-Blitz-April-02-2024"]
[Site "Chess.com"]
[Date "2024.04.02"]
[Round "3"]
[White "NikitaShnadrygin"]
[Black "KuzubovYuriy"]
[Result "0-1"]
[WhiteElo "2682"]
[BlackElo "2911"]
[TimeControl "180+1"]
[EndTime "8:27:02 PDT"]
[Termination "KuzubovYuriy won by resignation"]

1. e4 {[%clk 0:03:00.9]} 1... e6 {[%clk 0:03:00]} 2. d4 {[%clk 0:03:00.9]} 2...
d5 {[%clk 0:03:00.7]} 3. Nd2 {[%clk 0:03:01.6]} 3... Nc6 {[%clk 0:03:00.4]} 4.
Ngf3 {[%clk 0:03:01.6]} 4... Nf6 {[%clk 0:03:00.5]} 5. e5 {[%clk 0:03:01.9]}
5... Nd7 {[%clk 0:03:01.2]} 6. Bd3 {[%clk 0:03:02.6]} 6... Nb4 {[%clk
0:02:57.9]} 7. Be2 {[%clk 0:03:02.5]} 7... c5 {[%clk 0:02:56.7]} 8. c3 {[%clk
0:03:02.8]} 8... Nc6 {[%clk 0:02:56.8]} 9. O-O {[%clk 0:03:02.4]} 9... b6 {[%clk
0:02:57.3]} 10. Nb3 {[%clk 0:02:53]} 10... Bb7 {[%clk 0:02:54.9]} 11. c4 {[%clk
0:02:21.7]} 11... dxc4 {[%clk 0:02:50.2]} 12. Bxc4 {[%clk 0:02:22.6]} 12... cxd4
{[%clk 0:02:48.6]} 13. Nbxd4 {[%clk 0:02:22.7]} 13... Nxd4 {[%clk 0:02:36.8]}
14. Qxd4 {[%clk 0:01:50.2]} 14... Bxf3 {[%clk 0:02:03.5]} 15. gxf3 {[%clk
0:01:51.1]} 15... Bc5 {[%clk 0:02:02.9]} 16. Qe4 {[%clk 0:01:24.6]} 16... O-O
{[%clk 0:01:56.3]} 17. Bd3 {[%clk 0:01:05]} 17... g6 {[%clk 0:01:46.9]} 18. b4
{[%clk 0:00:48.6]} 18... Nxe5 {[%clk 0:01:06.8]} 19. Rd1 {[%clk 0:00:16.7]}
19... Qd4 {[%clk 0:00:40]} 20. Rb1 {[%clk 0:00:08.3]} 20... Qxf2+ {[%clk
0:00:38.1]} 21. Kh1 {[%clk 0:00:08]} 21... Nxd3 {[%clk 0:00:32.4]} 22. Qxd3
{[%clk 0:00:06.3]} 22... Rad8 {[%clk 0:00:30]} 0-1

[Event "Early-Titled-Tuesday-Blitz-April-02-2024"]
[Site "Chess.com"]
[Date "2024.04.02"]
[Round "3"]
[White "kai_nov"]
[Black "ansko1999"]
[Result "0-1"]
[WhiteElo "2336"]
[BlackElo "2637"]
[TimeControl "180+1"]
[EndTime "8:27:04 PDT"]
[Termination "ansko1999 won by resignation"]

1. e4 {[%clk 0:02:57.7]} 1... c5 {[%clk 0:02:57.5]} 2. Nf3 {[%clk 0:02:53.5]}
2... e6 {[%clk 0:02:57.8]} 3. c3 {[%clk 0:02:53.1]} 3... Nf6 {[%clk 0:02:57.5]}
4. e5 {[%clk 0:02:52.2]} 4... Nd5 {[%clk 0:02:58.1]} 5. d4 {[%clk 0:02:52.3]}
5... cxd4 {[%clk 0:02:59]} 6. cxd4 {[%clk 0:02:48.3]} 6... d6 {[%clk 0:02:58.9]}
7. Be2 {[%clk 0:02:45.1]} 7... Bd7 {[%clk 0:02:58.3]} 8. O-O {[%clk 0:02:43.8]}
8... Bc6 {[%clk 0:02:59]} 9. Nc3 {[%clk 0:02:26.6]} 9... Nxc3 {[%clk 0:02:56.9]}
10. bxc3 {[%clk 0:02:22.6]} 10... Nd7 {[%clk 0:02:56.3]} 11. Bf4 {[%clk
0:02:17.8]} 11... Qc7 {[%clk 0:02:47]} 12. Re1 {[%clk 0:02:05]} 12... dxe5
{[%clk 0:02:26.1]} 13. Nxe5 {[%clk 0:01:42.1]} 13... Nxe5 {[%clk 0:02:26.2]} 14.
Bxe5 {[%clk 0:01:41.4]} 14... Bd6 {[%clk 0:02:26.4]} 15. Bxd6 {[%clk 0:01:01]}
15... Qxd6 {[%clk 0:02:26.6]} 16. Bf3 {[%clk 0:00:55.9]} 16... O-O {[%clk
0:02:23.4]} 17. Bxc6 {[%clk 0:00:55.1]} 17... Qxc6 {[%clk 0:02:24.3]} 18. Qf3
{[%clk 0:00:55.2]} 18... Qxf3 {[%clk 0:02:14.6]} 19. gxf3 {[%clk 0:00:55.1]}
19... Rfc8 {[%clk 0:02:11]} 20. Rac1 {[%clk 0:00:54.4]} 20... Rc4 {[%clk
0:02:09.6]} 21. Re3 {[%clk 0:00:49.9]} 21... Rac8 {[%clk 0:02:09.3]} 22. Rb1
{[%clk 0:00:34.1]} 22... b6 {[%clk 0:02:04.8]} 23. Rb3 {[%clk 0:00:33.7]} 23...
Kf8 {[%clk 0:01:59.3]} 24. Kf1 {[%clk 0:00:32.6]} 24... Rd8 {[%clk 0:01:55.6]}
25. Ke2 {[%clk 0:00:31.4]} 25... Ra4 {[%clk 0:01:35.3]} 26. a3 {[%clk
0:00:27.9]} 26... Rd5 {[%clk 0:01:33]} 27. Kd2 {[%clk 0:00:26]} 27... Rda5
{[%clk 0:01:30.2]} 28. Kd3 {[%clk 0:00:16.1]} 28... Rxa3 {[%clk 0:01:28]} 29.
Rxa3 {[%clk 0:00:16.7]} 29... Rxa3 {[%clk 0:01:28.9]} 30. Kc4 {[%clk 0:00:17.3]}
30... a6 {[%clk 0:01:22.2]} 31. Re1 {[%clk 0:00:17.1]} 31... Ra4+ {[%clk
0:01:21.6]} 32. Kd3 {[%clk 0:00:16.7]} 32... b5 {[%clk 0:01:21.2]} 33. Rb1
{[%clk 0:00:17.1]} 33... Ke7 {[%clk 0:01:20.9]} 34. Rc1 {[%clk 0:00:17.4]} 34...
Kd6 {[%clk 0:01:21.1]} 35. Rb1 {[%clk 0:00:18]} 35... g6 {[%clk 0:01:19.7]} 36.
Rc1 {[%clk 0:00:18.9]} 36... Ra3 {[%clk 0:01:18.5]} 37. h4 {[%clk 0:00:19.4]}
37... b4 {[%clk 0:01:18.1]} 38. Kc4 {[%clk 0:00:19]} 38... Rxc3+ {[%clk
0:01:18]} 39. Rxc3 {[%clk 0:00:19.3]} 39... bxc3 {[%clk 0:01:18.9]} 40. Kxc3
{[%clk 0:00:20.2]} 40... Kd5 {[%clk 0:01:19.7]} 41. Kd3 {[%clk 0:00:20.8]} 41...
a5 {[%clk 0:01:19.7]} 42. f4 {[%clk 0:00:21.7]} 42... f5 {[%clk 0:01:19.5]} 43.
f3 {[%clk 0:00:20]} 43... a4 {[%clk 0:01:19.2]} 44. Kc3 {[%clk 0:00:20.4]} 44...
a3 {[%clk 0:01:19.7]} 45. Kb3 {[%clk 0:00:20.7]} 45... Kxd4 {[%clk 0:01:20.4]}
46. Kxa3 {[%clk 0:00:21.4]} 46... Ke3 {[%clk 0:01:21.2]} 47. Kb4 {[%clk
0:00:22.1]} 47... Kxf3 {[%clk 0:01:21.8]} 48. Kc5 {[%clk 0:00:22.8]} 48... Kxf4
{[%clk 0:01:22.5]} 49. Kd6 {[%clk 0:00:23.4]} 49... e5 {[%clk 0:01:23.1]} 50.
Ke7 {[%clk 0:00:24.1]} 50... e4 {[%clk 0:01:23.5]} 51. Kf7 {[%clk 0:00:25]}
51... Kg4 {[%clk 0:01:23.1]} 52. Kg7 {[%clk 0:00:25.9]} 52... Kxh4 {[%clk
0:01:23.5]} 53. Kxh7 {[%clk 0:00:26.8]} 53... Kg5 {[%clk 0:01:23.4]} 0-1

[Event "Early-Titled-Tuesday-Blitz-April-02-2024"]
[Site "Chess.com"]
[Date "2024.04.02"]
[Round "3"]
[White "Felix-Rose"]
[Black "maximnovik"]
[Result "0-1"]
[WhiteElo "2314"]
[BlackElo "2591"]
[TimeControl "180+1"]
[EndTime "8:27:12 PDT"]
[Termination "maximnovik won by resignation"]

1. e4 {[%clk 0:02:59.7]} 1... c6 {[%clk 0:03:00]} 2. d4 {[%clk 0:02:53.2]} 2...
d5 {[%clk 0:02:59.7]} 3. e5 {[%clk 0:02:53.3]} 3... Bf5 {[%clk 0:02:59.8]} 4. h4
{[%clk 0:02:52.5]} 4... Qb6 {[%clk 0:02:59.4]} 5. Nc3 {[%clk 0:02:48.4]} 5... h5
{[%clk 0:02:54.9]} 6. Bd3 {[%clk 0:02:48.2]} 6... Qxd4 {[%clk 0:02:52.8]} 7. Be3
{[%clk 0:01:39.2]} 7... Qb4 {[%clk 0:02:37.8]} 8. Bxf5 {[%clk 0:01:35.2]} 8...
Qxb2 {[%clk 0:02:37.6]} 9. Bd2 {[%clk 0:01:27.2]} 9... e6 {[%clk 0:02:35.7]} 10.
Rb1 {[%clk 0:01:21.5]} 10... Qa3 {[%clk 0:02:34.3]} 11. Bd3 {[%clk 0:01:21.2]}
11... b6 {[%clk 0:02:20.9]} 12. Nf3 {[%clk 0:01:13.9]} 12... Nd7 {[%clk
0:02:19.9]} 13. O-O {[%clk 0:01:12.6]} 13... g6 {[%clk 0:02:15.2]} 14. Rb3
{[%clk 0:01:07.4]} 14... Qe7 {[%clk 0:02:12.3]} 15. Bg5 {[%clk 0:01:04.1]} 15...
Qc5 {[%clk 0:02:12.1]} 16. Be3 {[%clk 0:00:57.2]} 16... Qa5 {[%clk 0:02:08.8]}
17. Bd2 {[%clk 0:00:47.8]} 17... Qc5 {[%clk 0:02:02.9]} 18. Ne2 {[%clk 0:00:35]}
18... b5 {[%clk 0:01:46.2]} 19. Bb4 {[%clk 0:00:34]} 19... Qb6 {[%clk
0:01:46.1]} 20. Bxf8 {[%clk 0:00:31.8]} 20... Kxf8 {[%clk 0:01:45.6]} 21. Rb1
{[%clk 0:00:29.2]} 21... Qc7 {[%clk 0:01:43.9]} 22. Ned4 {[%clk 0:00:23.8]}
22... Ne7 {[%clk 0:01:44]} 23. Re1 {[%clk 0:00:23.2]} 23... a6 {[%clk
0:01:42.7]} 24. Qd2 {[%clk 0:00:23]} 24... c5 {[%clk 0:01:42]} 25. Nxe6+ {[%clk
0:00:14.3]} 25... fxe6 {[%clk 0:01:41.9]} 26. Ng5 {[%clk 0:00:13.4]} 26... Qc6
{[%clk 0:01:28.8]} 27. Qf4+ {[%clk 0:00:13.2]} 27... Nf5 {[%clk 0:01:29]} 28. f3
{[%clk 0:00:08.8]} 28... Ke7 {[%clk 0:01:24.1]} 29. g4 {[%clk 0:00:07.9]} 29...
hxg4 {[%clk 0:01:24.2]} 30. fxg4 {[%clk 0:00:08.4]} 30... Rxh4 {[%clk 0:01:24]}
31. Kg2 {[%clk 0:00:05.7]} 31... Rah8 {[%clk 0:01:18.5]} 32. Rh1 {[%clk
0:00:05.7]} 32... c4 {[%clk 0:01:04.6]} 33. Bxf5 {[%clk 0:00:04.9]} 33... gxf5
{[%clk 0:01:04.1]} 34. Rxh4 {[%clk 0:00:05.6]} 34... Rxh4 {[%clk 0:01:03]} 35.
Kg1 {[%clk 0:00:03.5]} 35... Rxg4+ {[%clk 0:01:01]} 0-1

[Event "Early-Titled-Tuesday-Blitz-April-02-2024"]
[Site "Chess.com"]
[Date "2024.04.02"]
[Round "3"]
[White "nekotyanof"]
[Black "Happy1712Drummer"]
[Result "1-0"]
[WhiteElo "2669"]
[BlackElo "2497"]
[TimeControl "180+1"]
[EndTime "8:27:18 PDT"]
[Termination "nekotyanof won on time"]

1. e4 {[%clk 0:03:00.9]} 1... c5 {[%clk 0:03:00.3]} 2. Nf3 {[%clk 0:02:57.5]}
2... e6 {[%clk 0:03:00.3]} 3. Nc3 {[%clk 0:02:56.3]} 3... Nc6 {[%clk 0:02:59.6]}
4. d4 {[%clk 0:02:51]} 4... cxd4 {[%clk 0:02:59.8]} 5. Nxd4 {[%clk 0:02:51.9]}
5... Nf6 {[%clk 0:03:00.4]} 6. g3 {[%clk 0:02:46]} 6... d5 {[%clk 0:02:55]} 7.
Nxc6 {[%clk 0:02:39.9]} 7... bxc6 {[%clk 0:02:54.6]} 8. Bg2 {[%clk 0:02:38.5]}
8... Bb4 {[%clk 0:02:42.8]} 9. Bd2 {[%clk 0:02:28.8]} 9... O-O {[%clk
0:02:34.7]} 10. O-O {[%clk 0:02:18.2]} 10... Rb8 {[%clk 0:02:18.4]} 11. e5
{[%clk 0:01:28.1]} 11... Nd7 {[%clk 0:02:13.6]} 12. Qe2 {[%clk 0:01:27.9]} 12...
Qc7 {[%clk 0:01:58.5]} 13. f4 {[%clk 0:01:25.8]} 13... Bc5+ {[%clk 0:01:52.2]}
14. Kh1 {[%clk 0:01:24.5]} 14... Rxb2 {[%clk 0:01:47.1]} 15. Na4 {[%clk
0:01:24.2]} 15... Rxc2 {[%clk 0:01:42]} 16. Qd3 {[%clk 0:01:22.7]} 16... Rc4
{[%clk 0:01:38.5]} 17. Nxc5 {[%clk 0:01:12.7]} 17... Nxc5 {[%clk 0:01:39.4]} 18.
Qa3 {[%clk 0:01:10.2]} 18... Ne4 {[%clk 0:01:33.5]} 19. Ba5 {[%clk 0:01:00.2]}
19... Qd7 {[%clk 0:01:12.3]} 20. Rab1 {[%clk 0:00:59.3]} 20... c5 {[%clk
0:01:06.4]} 21. Be1 {[%clk 0:00:51.7]} 21... Qa4 {[%clk 0:00:56.6]} 22. Qe3
{[%clk 0:00:50]} 22... Qxa2 {[%clk 0:00:46.8]} 23. Rb8 {[%clk 0:00:46.6]} 23...
Rc2 {[%clk 0:00:38]} 24. Bxe4 {[%clk 0:00:40.1]} 24... Rxh2+ {[%clk 0:00:35.1]}
25. Kg1 {[%clk 0:00:40.3]} 25... dxe4 {[%clk 0:00:31.2]} 26. Bf2 {[%clk
0:00:40.9]} 26... Rh6 {[%clk 0:00:20]} 27. Qxc5 {[%clk 0:00:40.5]} 27... Qa6
{[%clk 0:00:10.3]} 28. Rc1 {[%clk 0:00:39.5]} 28... Rg6 {[%clk 0:00:01.7]} 29.
Rxc8 {[%clk 0:00:36.3]} 1-0

[Event "Early-Titled-Tuesday-Blitz-April-02-2024"]
[Site "Chess.com"]
[Date "2024.04.02"]
[Round "3"]
[White "JaackCamel"]
[Black "PapaieDudu"]
[Result "0-1"]
[WhiteElo "2179"]
[BlackElo "2399"]
[TimeControl "180+1"]
[EndTime "8:27:19 PDT"]
[Termination "PapaieDudu won on time"]

1. d4 {[%clk 0:03:00.9]} 1... d5 {[%clk 0:03:00.1]} 2. c4 {[%clk 0:03:00]} 2...
e6 {[%clk 0:03:00.5]} 3. Nc3 {[%clk 0:02:59.1]} 3... Nf6 {[%clk 0:03:01.1]} 4.
cxd5 {[%clk 0:02:58.6]} 4... exd5 {[%clk 0:03:01.1]} 5. Bg5 {[%clk 0:02:58.3]}
5... Nbd7 {[%clk 0:03:00.8]} 6. e3 {[%clk 0:02:58]} 6... Be7 {[%clk 0:03:01.2]}
7. Bd3 {[%clk 0:02:56.4]} 7... O-O {[%clk 0:03:01.3]} 8. Nge2 {[%clk 0:02:46.6]}
8... Re8 {[%clk 0:03:00.5]} 9. Qc2 {[%clk 0:02:42.5]} 9... c6 {[%clk 0:02:59.2]}
10. O-O {[%clk 0:02:37.1]} 10... h6 {[%clk 0:02:58.7]} 11. Bh4 {[%clk
0:02:35.9]} 11... Nf8 {[%clk 0:02:53.9]} 12. h3 {[%clk 0:02:32.1]} 12... Ne6
{[%clk 0:02:53.8]} 13. Bg3 {[%clk 0:02:21.4]} 13... b5 {[%clk 0:02:52.7]} 14.
Rac1 {[%clk 0:02:14.2]} 14... a5 {[%clk 0:02:51.8]} 15. Rfd1 {[%clk 0:02:02.8]}
15... a4 {[%clk 0:02:49.8]} 16. Nb1 {[%clk 0:01:58.8]} 16... Bb7 {[%clk
0:02:44.1]} 17. Nd2 {[%clk 0:01:49.4]} 17... b4 {[%clk 0:02:41.5]} 18. Nf3
{[%clk 0:01:43.8]} 18... c5 {[%clk 0:02:39.6]} 19. dxc5 {[%clk 0:01:41.2]} 19...
Nxc5 {[%clk 0:02:37.8]} 20. Ned4 {[%clk 0:01:39.8]} 20... Nxd3 {[%clk
0:02:34.6]} 21. Qxd3 {[%clk 0:01:39]} 21... Ne4 {[%clk 0:02:35.3]} 22. Bc7
{[%clk 0:01:32.3]} 22... Qd7 {[%clk 0:02:33.2]} 23. Ne5 {[%clk 0:01:22.7]} 23...
Qc8 {[%clk 0:02:25.7]} 24. Bb6 {[%clk 0:01:11.8]} 24... Bc5 {[%clk 0:02:23.4]}
25. Qb5 {[%clk 0:00:53.8]} 25... Ba6 {[%clk 0:02:16.1]} 26. Qxa4 {[%clk
0:00:20.4]} 26... Bc4 {[%clk 0:02:05.6]} 27. Qc6 {[%clk 0:00:14.8]} 27... Qxc6
{[%clk 0:02:02.3]} 28. Nexc6 {[%clk 0:00:12.1]} 28... Bxb6 {[%clk 0:02:02.9]}
29. b3 {[%clk 0:00:11.9]} 29... Ba6 {[%clk 0:01:45.6]} 30. Nxb4 {[%clk
0:00:11.7]} 30... Bb7 {[%clk 0:01:43.9]} 31. a4 {[%clk 0:00:10.5]} 31... Ba5
{[%clk 0:01:40.5]} 32. Nd3 {[%clk 0:00:08.5]} 32... Bc3 {[%clk 0:01:36.7]} 33.
Nb5 {[%clk 0:00:07.6]} 33... Ba5 {[%clk 0:01:31.1]} 34. Nf4 {[%clk 0:00:05]}
34... Red8 {[%clk 0:01:25.1]} 35. Rd4 {[%clk 0:00:04.2]} 35... Bb6 {[%clk
0:01:21]} 36. Rdd1 {[%clk 0:00:03.4]} 36... Rac8 {[%clk 0:01:13]} 37. Ne2 {[%clk
0:00:03.2]} 37... Rxc1 {[%clk 0:01:09.7]} 38. Rxc1 {[%clk 0:00:03.5]} 38... Nd2
{[%clk 0:01:07.1]} 39. Ned4 {[%clk 0:00:02.9]} 39... Rc8 {[%clk 0:00:59.6]} 0-1

[Event "Early-Titled-Tuesday-Blitz-April-02-2024"]
[Site "Chess.com"]
[Date "2024.04.02"]
[Round "3"]
[White "madmax011"]
[Black "IsaqueGoncalvesSanto"]
[Result "1-0"]
[WhiteElo "2352"]
[BlackElo "1908"]
[TimeControl "180+1"]
[EndTime "8:27:19 PDT"]
[Termination "madmax011 won on time"]

1. d4 {[%clk 0:02:57.2]} 1... d5 {[%clk 0:02:59.3]} 2. c4 {[%clk 0:02:56.9]}
2... e6 {[%clk 0:02:58.3]} 3. Nc3 {[%clk 0:02:53.7]} 3... c6 {[%clk 0:02:58.2]}
4. e3 {[%clk 0:02:51.9]} 4... f5 {[%clk 0:02:57.6]} 5. Bd3 {[%clk 0:02:49.4]}
5... Nf6 {[%clk 0:02:57]} 6. Nf3 {[%clk 0:02:48.7]} 6... Bd6 {[%clk 0:02:56.5]}
7. c5 {[%clk 0:02:47.1]} 7... Bc7 {[%clk 0:02:56.1]} 8. b4 {[%clk 0:02:47.2]}
8... O-O {[%clk 0:02:44.5]} 9. Ne5 {[%clk 0:02:46.2]} 9... Ne4 {[%clk
0:02:41.7]} 10. Bd2 {[%clk 0:02:40.4]} 10... Nxd2 {[%clk 0:02:32.3]} 11. Qxd2
{[%clk 0:02:41.3]} 11... a5 {[%clk 0:02:32.4]} 12. b5 {[%clk 0:02:38.9]} 12...
Nd7 {[%clk 0:02:26.5]} 13. f4 {[%clk 0:02:23.2]} 13... Nf6 {[%clk 0:02:19.1]}
14. O-O {[%clk 0:02:21.3]} 14... Ne4 {[%clk 0:02:13.9]} 15. Bxe4 {[%clk
0:02:06.7]} 15... fxe4 {[%clk 0:02:11.1]} 16. bxc6 {[%clk 0:02:06.5]} 16... bxc6
{[%clk 0:02:03.1]} 17. Nxc6 {[%clk 0:02:04.7]} 17... Qe8 {[%clk 0:01:58.3]} 18.
Ne5 {[%clk 0:02:01.8]} 18... Ba6 {[%clk 0:01:57.4]} 19. Rfb1 {[%clk 0:01:54.8]}
19... Qh5 {[%clk 0:01:51.7]} 20. Qd1 {[%clk 0:01:50]} 20... Qe8 {[%clk
0:01:25.8]} 21. Na4 {[%clk 0:01:30.3]} 21... Rf6 {[%clk 0:01:19.7]} 22. Nb6
{[%clk 0:01:29.7]} 22... Ra7 {[%clk 0:01:10.6]} 23. Rb2 {[%clk 0:00:58.3]} 23...
Rh6 {[%clk 0:01:06.5]} 24. Rab1 {[%clk 0:00:54.6]} 24... Bd8 {[%clk 0:00:44.8]}
25. c6 {[%clk 0:00:37]} 25... Rc7 {[%clk 0:00:26.9]} 26. Nbd7 {[%clk 0:00:35.2]}
1-0